bitfinex/quotes_ETHUSD_20241130
["timestamp","ask_amount","ask_price","bid_price","bid_amount"]
[1732944216392,1.70412664,3657.2,3656.5,2.73479]
[1732944216720,1.70412664,3657.2,3656.5,2.73485]
[1732944216721,0.55,3657.1,3656.5,2.73485]
[1732944217014,0.55,3657.1,3656.8,2.73462]
[1732944219425,0.55,3657.1,3656.6,2.73476]
[1732944219643,0.55,3657.1,3656.9,2.73454]
[1732944221239,0.55,3657.1,3657.0,2.73448]
[1732944222170,0.55,3657.1,3656.2,0.7954]
[1732944222377,0.55,3657.1,3656.1,0.54978605]
[1732944222378,0.55,3656.9,3656.5,2.73484]
[1732944222731,0.58418234,3656.9,3656.3,2.73495]
[1732944222934,0.55,3656.7,3656.3,2.73495]
[1732944223242,1.49972664,3656.7,3656.3,2.73495]
[1732944224767,0.55,3656.7,3656.6,2.73478]
[1732944225083,0.7544,3657.1,3656.8,2.73463]
[1732944225593,0.7544,3657.1,3655.8,0.94972664]
[1732944225766,0.7544,3657.1,3656.6,2.73478]
[1732944226462,0.55,3656.8,3656.3,2.73494]
[1732944226858,0.55,3657.1,3656.0,3.51822]
[1732944227056,0.55,3657.1,3656.2,5.47016]
[1732944227279,0.55,3657.1,3656.5,2.73478]
[1732944227465,0.55,3657.1,3656.6,2.73475]
[1732944228096,1.49972664,3657.1,3656.6,2.73475]
[1732944228267,0.55,3657.1,3656.6,2.73472]
[1732944228999,0.55,3657.1,3656.8,2.7346]
[1732944229152,0.55,3657.1,3656.6,2.73471]
[1732944229351,0.55,3657.1,3656.7,2.7347]
[1732944229555,0.55,3657.1,3656.8,2.73462]
[1732944230178,0.55,3657.1,3656.6,3.3090718]
[1732944230380,0.55,3657.1,3656.9,2.73454]
[1732944231295,0.55,3657.1,3657.0,2.73448]
[1732944231818,0.55,3657.3,3657.0,2.73448]
[1732944233205,0.55,3657.3,3657.0,2.73441]
[1732944233439,0.55,3657.3,3657.0,3.35962]
[1732944234221,0.55,3657.3,3656.8,2.73463]
[1732944234527,0.55,3657.3,3656.6,0.5743018]
[1732944234711,0.55,3657.3,3656.8,2.73462]
[1732944235366,0.7545,3657.2,3656.6,2.73477]
[1732944235540,0.55,3657.1,3656.7,2.73469]
[1732944235748,1.49972664,3657.1,3656.7,2.73469]
[1732944236247,0.55,3657.1,3656.9,2.73454]
[1732944236403,0.55,3657.1,3657.0,2.73448]
[1732944237048,0.55,3657.1,3656.9,2.73454]
[1732944237704,0.55,3657.1,3657.0,2.73448]
[1732944238219,0.55,3657.1,3656.7,2.71273909]
[1732944238220,0.55,3657.1,3656.7,2.73468]
[1732944238840,0.55,3657.1,3656.8,2.73457]
[1732944239209,0.55,3657.1,3656.7,2.73468]
[1732944240023,0.55,3657.1,3656.5,2.73483]
[1732944240232,1.3045,3656.7,3655.9,0.783]
[1732944240432,1.3045,3656.7,3655.8,2.73537]
[1732944240664,1.3045,3656.7,3656.1,0.783]
[1732944240974,1.3045,3656.7,3656.4,2.73486]
[1732944241274,1.3045,3656.7,3656.5,2.7348]
[1732944242548,1.3045,3656.7,3656.3,2.735]
[1732944242751,0.03418324,3657.1,3656.1,0.783]
[1732944242952,0.7545,3657.2,3657.0,2.73447]
[1732944243240,0.7545,3657.2,3656.9,2.73449]
[1732944243634,0.7545,3657.2,3656.7,3.51769]
[1732944243871,0.7545,3657.2,3656.8,2.73462]
[1732944244076,0.7545,3657.4,3657.2,2.73426]
[1732944244248,0.7545,3657.4,3657.3,2.73425]
[1732944244587,0.7545,3657.4,3657.1,2.7344]
[1732944245272,0.7545,3657.4,3657.3,2.73425]
[1732944245473,1.3045,3657.4,3655.8,0.55857422]
[1732944245675,0.55,3656.9,3655.8,0.55857422]
[1732944245882,0.55,3656.9,3656.6,2.73475]
[1732944246949,0.55,3656.9,3656.3,2.73494]
[1732944247151,0.8256,3656.8,3656.3,2.73494]
[1732944247337,0.8256,3656.8,3656.3,0.273494]
[1732944247338,0.55,3656.7,3656.3,0.273494]
[1732944247540,0.55,3656.7,3655.8,0.55857422]
[1732944249993,0.55,3656.7,3655.9,0.8187]
[1732944258219,0.8256,3657.6,3656.4,0.8187]
[1732944258760,0.8256,3657.6,3656.7,0.8187]
[1732944260559,0.55,3657.5,3656.7,0.8187]
[1732944260754,0.55,3657.5,3656.8,0.23073655]
[1732944260964,0.25591291,3657.8,3656.8,0.23073655]
[1732944260965,0.55,3657.7,3656.8,0.23073655]
[1732944261976,0.25585686,3658.1,3656.9,1.76842664]
[1732944262254,0.8256,3658.2,3657.0,0.8187]
[1732944262453,0.8256,3658.2,3657.1,0.19991632]
[1732944262868,0.8256,3658.2,3657.2,0.8187]
[1732944263246,0.55,3658.1,3657.2,0.8187]
[1732944267074,0.55,3657.9,3657.1,0.19991632]
[1732944267279,1.49972664,3657.9,3656.8,0.23073655]
[1732944268048,0.55,3657.7,3656.8,0.23073655]
[1732944274312,4.28745997,3659.0,3656.8,0.23073655]
[1732944274313,0.7501,3658.1,3656.9,0.7545]
[1732944274516,0.7501,3658.1,3657.1,0.7545]
[1732944276054,0.55,3658.0,3657.1,0.7545]
[1732944276349,0.7501,3658.1,3657.1,0.7545]
[1732944276546,1.69982664,3658.6,3657.1,1.70422664]
[1732944276721,1.69982664,3658.6,3657.2,0.5297723]
[1732944276918,1.69982664,3658.6,3657.1,1.70422664]
[1732944277307,0.7501,3658.5,3657.1,0.7545]
[1732944277604,0.94972664,3658.6,3657.1,0.7545]
[1732944277605,0.55,3658.1,3657.1,0.7545]
[1732944278145,0.55,3658.1,3657.3,0.54636498]
[1732944280207,0.530078,3658.1,3657.3,0.54636498]
[1732944280966,0.7501,3658.0,3657.3,0.54636498]
[1732944281452,0.7501,3658.0,3656.8,0.23073655]
[1732944281625,0.7501,3658.0,3656.9,0.19349632]
[1732944282026,0.94972664,3657.6,3656.9,0.19349632]
[1732944282231,0.7501,3657.4,3656.9,0.19349632]
[1732944282463,0.55,3657.3,3656.6,0.54408112]
[1732944284550,0.55,3657.3,3655.9,0.7545]
[1732944286014,3.28431,3657.3,3655.9,0.7545]
[1732944286248,0.55,3657.1,3655.9,0.7545]
[1732944286652,0.55,3657.1,3656.2,0.55704455]
[1732944287829,0.55,3657.1,3656.3,0.7796]
[1732944290825,0.55,3656.9,3656.2,0.55704455]
[1732944294366,0.55,3656.9,3655.8,0.8081]
[1732944294683,0.55,3656.7,3656.0,0.55649328]
[1732944296371,0.55,3656.5,3656.0,0.55649328]
[1732944296542,0.762,3656.6,3655.5,0.8081]
[1732944296543,0.55,3656.3,3655.5,0.8081]
[1732944297172,0.55,3656.1,3654.5,2.10054773]
[1732944297376,0.55,3656.1,3655.2,0.53871132]
[1732944297682,0.55,3656.1,3655.3,0.01368163]
[1732944297977,0.55,3656.1,3655.2,0.53871132]
[1732944298333,0.55,3656.1,3655.3,0.01368165]
[1732944298529,0.762,3656.0,3655.2,0.53871132]
[1732944298771,2.73515,3656.1,3655.2,0.53871132]
[1732944298772,0.762,3655.8,3655.2,0.53871132]
[1732944298943,0.55,3655.7,3655.2,0.53871132]
[1732944299546,0.55,3655.5,3654.6,0.8081]
[1732944299755,0.55,3655.3,3654.9,2.73598]
[1732944299975,0.55,3655.3,3655.0,0.547218]
[1732944300390,0.55,3655.3,3654.7,2.73613]
[1732944300538,2.10054773,3655.9,3654.5,2.73631]
[1732944300539,0.55,3655.1,3654.5,2.73631]
[1732944300733,3.28591,3655.1,3654.5,2.73631]
[1732944300960,3.49816,3654.8,3654.1,2.73659]
[1732944301308,0.55,3654.7,3654.3,2.73643]
[1732944301471,0.55,3654.7,3654.3,0.273643]
[1732944301887,0.55,3654.7,3653.9,2.73679]
[1732944302191,1.312,3654.8,3653.9,2.73679]
[1732944302390,0.762,3654.5,3653.4,3.5452]
[1732944302575,0.55,3654.4,3654.0,2.73666]
[1732944302902,0.55,3654.4,3653.8,2.73685]
[1732944303105,0.55,3654.4,3654.2,2.7365]
[1732944303308,0.55,3654.4,3654.0,2.73669]
[1732944303612,0.55,3654.4,3653.9,3.010485]
[1732944304111,0.55,3654.4,3653.9,0.273685]
[1732944304673,0.55,3654.4,3654.0,2.73671]
[1732944304976,0.55,3654.4,3654.0,3.3114355]
[1732944305666,0.55,3654.4,3654.0,0.5747255]
[1732944305862,0.55,3654.4,3654.2,2.73657]
[1732944306491,0.55,3654.4,3654.0,2.73668]
[1732944306799,0.55,3654.4,3653.9,5.47346]
[1732944306998,0.55,3654.4,3654.0,2.73666]
[1732944307909,0.55,3654.4,3653.8,2.73685]
[1732944308211,0.55,3654.4,3653.9,0.547379]
[1732944308973,0.55,3654.4,3654.0,2.73666]
[1732944309503,0.55,3654.4,3653.9,0.547379]
[1732944309708,0.55,3654.4,3653.4,4.08451918]
[1732944309869,0.55,3654.4,3654.1,2.73661]
[1732944310367,0.55,3654.4,3653.9,2.73676]
[1732944311191,0.55,3654.2,3653.7,2.73693]
[1732944311485,0.55,3654.2,3653.8,2.73682]
[1732944311794,0.55,3654.2,3653.5,2.73704]
[1732944311990,0.55,3654.2,3653.6,2.73701]
[1732944312182,0.55,3654.2,3653.5,2.73708]
[1732944312719,3.28658,3654.2,3653.5,2.73708]
[1732944312922,0.8287,3653.9,3653.1,2.73738]
[1732944313077,0.55,3653.8,3653.3,2.73721]
[1732944314026,3.28687,3653.8,3653.1,2.73738]
[1732944314321,0.55,3653.8,3653.2,2.73732]
[1732944314692,0.55,3653.6,3652.9,2.7375]
[1732944315022,0.55,3653.6,3653.1,2.73739]
[1732944316354,0.8287,3653.5,3652.9,2.7375]
[1732944316574,0.8287,3653.5,3652.7,2.73769]
[1732944316575,0.55,3653.4,3652.7,2.73769]
[1732944316849,0.55,3653.4,3652.8,0.0137346]
[1732944317055,0.55,3653.4,3652.9,2.73755]
[1732944317252,0.55,3653.4,3653.2,2.73728]
[1732944317455,0.55,3653.4,3653.0,2.73747]
[1732944317613,0.55,3653.4,3652.9,0.27512846]
[1732944317614,0.55,3653.4,3653.1,2.73739]
[1732944318863,0.55,3653.4,3652.9,3.01265846]
[1732944318864,0.55,3653.4,3652.9,0.27512846]
[1732944319065,0.8287,3653.4,3652.8,2.73759]
[1732944319272,0.55,3653.3,3652.8,2.73755]
[1732944319474,0.55,3653.3,3652.6,2.73777]
[1732944319780,0.55,3653.1,3652.8,2.73758]
[1732944321972,0.55,3653.1,3652.6,2.73773]
[1732944322633,0.55,3653.1,3652.7,2.73768]
[1732944322835,0.55,3653.1,3652.5,2.73777]
[1732944323138,0.55,3653.1,3652.7,2.73764]
[1732944323702,0.55,3653.1,3652.8,2.73756]
[1732944324300,0.55,3653.1,3652.7,2.73768]
[1732944324702,0.55,3653.1,3652.5,2.73784]
[1732944326481,0.8162,3652.8,3652.1,2.73814]
[1732944326668,0.55,3652.7,3652.1,2.73814]
[1732944326882,0.55,3652.7,3652.4,2.73792]
[1732944327082,0.55,3652.7,3652.2,2.73807]
[1732944329193,0.55,3652.7,3651.8,0.53461874]
[1732944329194,0.55,3652.5,3651.8,0.53461874]
[1732944329404,0.55,3652.5,3652.0,2.73817]
[1732944330370,0.55,3652.5,3652.3,2.73798]
[1732944330683,0.55,3652.5,3652.1,2.73811]
[1732944331830,0.55,3652.5,3651.8,0.53461874]
[1732944331981,0.55,3652.5,3652.2,2.73806]
[1732944333003,0.55,3652.5,3652.0,2.7382]
[1732944333206,0.55,3652.5,3652.1,2.73812]
[1732944333594,0.55,3652.5,3652.2,2.73807]
[1732944334523,0.8162,3653.4,3652.3,0.84164976]
[1732944334733,0.8162,3653.4,3652.9,2.73749]
[1732944335244,3.55339,3653.4,3652.7,2.73769]
[1732944335395,0.8162,3653.4,3652.7,2.73769]
[1732944335599,0.8162,3653.4,3652.8,2.73759]
[1732944335925,0.55,3653.3,3652.8,2.73759]
[1732944336235,0.55,3653.3,3652.9,2.73754]
[1732944338294,0.55,3653.3,3652.7,2.73768]
[1732944338497,1.3662,3653.1,3652.5,2.73783]
[1732944338697,1.3662,3653.1,3652.3,2.73799]
[1732944338698,2.73747,3653.0,3652.3,2.73799]
[1732944338899,0.55,3652.7,3652.1,2.7381]
[1732944339491,0.55,3652.7,3652.0,2.73815]
[1732944339696,0.55,3652.7,3652.2,2.73805]
[1732944340136,0.55,3652.5,3651.8,3.29032498]
[1732944340442,0.55,3652.5,3652.0,2.73817]
[1732944340614,0.55,3652.5,3652.1,2.73813]
[1732944341135,0.55,3652.5,3652.0,2.7382]
[1732944342819,0.55,3652.5,3652.2,2.73803]
[1732944344808,0.55,3652.5,3652.4,2.73792]
[1732944345120,0.8162,3652.6,3652.4,0.547595]
[1732944345319,0.8162,3652.6,3652.3,2.73799]
[1732944345642,0.8162,3652.6,3651.8,0.7733]
[1732944345643,0.8162,3652.6,3652.4,2.73787]
[1732944345952,0.7889,3653.5,3652.9,2.73755]
[1732944346148,0.7889,3653.5,3652.4,0.7733]
[1732944346149,0.25501169,3653.4,3653.0,2.73742]
[1732944346359,0.25501169,3653.3,3653.0,2.73742]
[1732944346560,0.7889,3653.5,3652.8,2.73757]
[1732944346707,0.25508506,3653.4,3652.8,2.73757]
[1732944346907,0.25508506,3653.3,3652.8,2.73757]
[1732944347157,0.25508506,3653.3,3652.3,2.73799]
[1732944347158,3.52629,3653.2,3652.3,2.73799]
[1732944347352,0.80511707,3653.1,3652.6,2.73777]
[1732944347659,0.55,3653.1,3652.6,2.73777]
[1732944349655,0.55,3653.1,3652.6,2.73773]
[1732944350564,0.55,3653.1,3652.7,2.73767]
[1732944352352,0.55,3653.1,3652.0,2.73822]
[1732944352537,0.55,3653.1,3652.5,2.73777]
[1732944352941,0.55,3653.1,3652.8,2.73757]
[1732944353573,0.55,3653.1,3652.6,2.73772]
[1732944354562,0.55,3653.1,3652.7,2.73764]
[1732944360299,0.55,3653.1,3652.5,2.73785]
[1732944360300,0.55,3653.1,3652.8,2.73761]
[1732944360791,0.55,3653.1,3652.3,0.7733]
[1732944360991,0.55,3653.1,3652.7,2.73763]
[1732944361879,0.55,3653.1,3652.5,2.73784]
[1732944362078,0.55,3653.1,3652.7,2.73767]
[1732944362513,0.55,3653.1,3652.5,2.75159077]
[1732944362836,0.55,3653.1,3653.0,2.73747]
[1732944363327,0.2558641,3653.4,3653.1,2.7374]
[1732944363530,2.27050974,3654.4,3653.0,0.28747614]
[1732944363531,0.7889,3653.8,3653.0,0.28747614]
[1732944363685,0.7889,3654.1,3653.9,2.73675]
[1732944364025,0.25591568,3654.0,3653.9,2.73675]
[1732944364183,0.25591997,3654.0,3653.7,2.73694]
[1732944364395,0.03421145,3654.0,3653.1,0.7733]
[1732944364700,1.73901585,3654.1,3653.6,2.73701]
[1732944364895,0.25584951,3654.0,3653.6,2.73701]
[1732944365097,1.73901585,3654.1,3653.6,2.73701]
[1732944365533,0.25566114,3654.0,3653.6,2.73701]
[1732944365830,0.55,3654.0,3653.6,2.73701]
[1732944366914,1.05256558,3654.0,3653.4,2.73712]
[1732944367114,0.752,3653.7,3653.4,2.73712]
[1732944367315,0.55,3653.6,3653.3,2.73724]
[1732944367497,0.55,3653.6,3653.4,2.73716]
[1732944367723,0.55,3653.6,3653.1,2.73739]
[1732944368028,0.55,3653.6,3652.6,0.54936689]
[1732944368029,0.55,3653.2,3652.6,0.54936689]
[1732944368237,0.55,3653.2,3653.0,2.73746]
[1732944368384,0.55,3653.2,3652.8,2.73757]
[1732944369015,0.55,3653.2,3652.7,2.73769]
[1732944369016,0.55,3653.0,3652.7,2.73769]
[1732944369214,0.55,3653.0,3652.6,2.73776]
[1732944369483,0.55,3653.2,3652.6,2.73776]
[1732944369924,3.28738,3653.2,3652.6,2.73776]
[1732944370335,1.302,3653.0,3652.4,2.73786]
[1732944371102,1.302,3653.0,3652.1,0.36489727]
[1732944371337,1.302,3653.0,3652.5,2.73778]
[1732944373010,0.55,3652.8,3652.3,2.73796]
[1732944373213,3.32185469,3652.8,3651.9,3.49679]
[1732944373400,3.32185469,3652.8,3652.2,2.73805]
[1732944373401,0.55,3652.8,3652.2,2.73805]
[1732944374348,0.55,3652.8,3652.0,2.73822]
[1732944374349,0.55,3652.8,3652.3,2.738]
[1732944374741,0.55,3652.8,3652.0,2.73822]
[1732944375052,0.55,3652.6,3652.1,2.7381]
[1732944375403,0.55,3652.6,3652.3,2.73793]
[1732944376426,0.55,3652.6,3652.1,2.73813]
[1732944376607,0.55,3652.6,3652.3,2.73797]
[1732944377003,0.55,3652.6,3652.1,2.73813]
[1732944377502,0.55,3652.4,3651.9,2.73829]
[1732944377718,0.55,3652.2,3651.9,2.73829]
[1732944378004,0.55,3652.4,3652.1,2.73815]
[1732944378609,0.55,3652.4,3651.9,2.73829]
[1732944381844,0.55,3652.4,3652.0,2.73822]
[1732944383337,0.752,3652.8,3652.2,2.73804]
[1732944383957,3.48962,3652.8,3652.2,2.73804]
[1732944384932,0.55,3652.7,3652.2,2.73804]
[1732944386839,0.55,3652.5,3651.8,2.73836]
[1732944387043,0.55,3652.3,3651.8,2.73836]
[1732944387215,0.55,3652.3,3651.9,2.73829]
[1732944387759,0.55,3652.3,3651.7,2.73843]
[1732944387955,0.55,3652.3,3651.5,0.32983838]
[1732944388273,0.55,3652.3,3651.9,2.73829]
[1732944390530,0.55,3652.3,3652.0,2.73822]
[1732944391682,0.752,3652.2,3651.5,0.01375577]
[1732944391860,0.55,3651.5,3651.0,2.73892]
[1732944392605,0.55,3651.5,3650.8,0.8028]
[1732944392906,0.55,3651.5,3651.4,2.73867]
[1732944393404,0.55,3651.5,3651.2,2.73881]
[1732944393790,0.55,3651.5,3651.1,2.73889]
[1732944394466,0.55,3651.5,3650.8,0.8028]
[1732944394789,0.55,3651.5,3651.2,2.73877]
[1732944395467,0.55,3651.5,3651.0,2.73896]
[1732944395666,0.55,3651.5,3651.3,2.73872]
[1732944396703,0.752,3652.7,3651.8,2.73835]
[1732944396874,0.25537288,3652.6,3651.5,2.73859]
[1732944397076,1.00737288,3652.7,3651.6,2.75227802]
[1732944397277,0.752,3652.7,3652.2,2.73802]
[1732944397990,3.48975,3652.7,3652.0,3.54101]
[1732944398306,3.48975,3652.7,3651.8,2.73837]
[1732944398307,3.28787,3652.5,3651.8,2.73837]
[1732944398464,0.55,3652.5,3651.7,2.73845]
[1732944398660,0.55,3652.5,3651.8,2.73837]
[1732944398869,0.55,3652.5,3651.9,2.73825]
[1732944399492,0.55,3652.5,3652.0,2.73821]
[1732944399877,0.44340947,3653.0,3652.0,2.73821]
[1732944399878,1.7024489,3652.9,3652.0,1.350466]
[1732944400209,1.7024489,3652.9,3652.2,2.73807]
[1732944400395,1.7024489,3652.9,3652.5,2.73783]
[1732944400596,1.7024489,3652.9,3652.5,2.73778]
[1732944401012,1.7024489,3652.9,3652.3,2.73794]
[1732944401208,0.55,3652.8,3652.3,2.73794]
[1732944401575,0.03422484,3652.7,3652.3,2.73794]
[1732944401774,0.55,3652.4,3652.1,2.7381]
[1732944402013,0.55,3652.2,3651.9,2.73826]
[1732944402686,0.55,3652.2,3652.0,2.73816]
[1732944403504,0.55,3652.2,3651.8,2.73835]
[1732944403704,0.55,3652.2,3651.9,2.73829]
[1732944403876,0.55,3652.0,3651.9,2.73829]
[1732944404507,0.55,3652.3,3651.9,2.73829]
[1732944404730,0.55,3652.4,3651.9,2.73829]
[1732944406105,2.738,3652.3,3651.7,2.73844]
[1732944406279,0.55,3652.2,3651.7,2.73844]
[1732944406480,0.55,3652.0,3651.7,2.73844]
[1732944407080,0.55,3652.0,3651.3,0.8028]
[1732944407429,0.55,3652.0,3651.7,2.73843]
[1732944407726,0.55,3652.0,3651.5,2.73855]
[1732944408323,0.55,3652.0,3651.6,2.73851]
[1732944408914,0.55,3652.0,3651.3,3.54153]
[1732944409222,0.55,3652.0,3651.5,2.73857]
[1732944410593,0.55,3652.0,3651.5,2.73853]
[1732944410798,0.55,3652.0,3651.6,0.628]
[1732944411013,0.55,3652.0,3651.7,2.73839]
[1732944411384,0.774,3652.4,3651.8,0.8135]
[1732944411583,1.02989897,3652.8,3652.4,2.7379]
[1732944411785,0.774,3652.8,3651.9,0.013755]
[1732944411983,0.774,3652.8,3652.6,2.73777]
[1732944412427,0.774,3652.8,3652.4,2.73789]
[1732944413016,0.55,3652.7,3652.4,2.73789]
[1732944421160,0.55,3652.7,3652.6,2.73777]
[1732944421527,0.55,3652.9,3652.7,2.73768]
[1732944421728,0.55,3652.9,3652.4,2.73789]
[1732944421931,0.55,3652.9,3652.7,2.73769]
[1732944422611,0.55,3652.9,3652.8,2.73762]
[1732944423114,0.55,3652.9,3651.8,0.01374288]
[1732944423115,1.02965737,3653.4,3653.1,2.73739]
[1732944423318,0.774,3653.4,3653.1,2.73739]
[1732944424661,0.55,3653.3,3653.1,2.73739]
[1732944425013,0.55,3653.3,3652.9,2.73753]
[1732944425235,0.55,3653.3,3653.0,2.73746]
[1732944426273,0.55,3653.3,3652.9,2.73753]
[1732944426451,0.55,3653.3,3652.6,2.73776]
[1732944426452,0.95008425,3653.2,3652.7,2.73766]
[1732944426656,0.55,3653.1,3652.7,2.73766]
[1732944428753,0.7847,3652.8,3652.5,2.73782]
[1732944428963,0.55,3652.7,3652.5,2.73778]
[1732944429290,0.55,3652.7,3652.6,2.73777]
[1732944429583,0.55,3652.7,3652.6,3.49847]
[1732944429743,0.55,3652.7,3652.6,2.73777]
[1732944430958,0.55,3653.0,3652.4,2.73786]
[1732944431159,0.55,3653.0,3652.5,2.73783]
[1732944432152,0.55,3652.8,3652.5,2.73783]
[1732944432559,0.55,3652.8,3652.7,2.7377]
[1732944432780,0.55,3653.1,3652.7,2.73766]
[1732944437552,0.55,3653.1,3652.8,2.7376]
[1732944437961,0.55,3653.1,3652.5,3.49852]
[1732944438255,0.55,3653.1,3652.7,2.73764]
[1732944438460,0.55,3653.1,3652.8,2.7376]
[1732944439097,0.55,3653.1,3652.7,2.73769]
[1732944439298,0.55,3653.1,3652.5,0.7607]
[1732944439299,0.55,3653.1,3652.5,3.49853]
[1732944439509,0.55,3653.1,3652.7,2.73764]
[1732944441518,0.55,3652.9,3652.7,2.73764]
[1732944441814,0.55,3653.1,3652.5,2.73783]
[1732944442114,0.25640195,3653.0,3652.5,2.73783]
[1732944442415,0.55,3652.8,3652.5,2.73783]
[1732944442569,3.78960543,3653.1,3652.5,2.73783]
[1732944442770,0.55,3652.9,3652.5,2.73783]
[1732944443185,0.55,3653.0,3652.5,2.73783]
[1732944443385,0.55,3652.8,3652.4,2.73791]
[1732944443966,2.73747,3653.0,3652.3,3.49868]
[1732944443967,0.55,3653.0,3652.3,3.49868]
[1732944444123,0.55,3653.0,3652.5,2.73784]
[1732944444272,0.55,3652.8,3652.3,3.49868]
[1732944444622,0.55,3652.6,3652.2,2.73806]
[1732944444986,0.55,3652.6,3652.3,2.73799]
[1732944445418,0.55,3652.6,3652.4,2.73792]
[1732944445631,2.73734,3653.2,3652.5,2.73785]
[1732944445632,0.55,3652.8,3652.5,2.73785]
[1732944445794,0.55,3653.1,3652.6,0.7973]
[1732944446118,0.55,3653.1,3652.8,2.73761]
[1732944446871,0.55,3653.2,3652.8,2.73762]
[1732944447078,0.25627346,3653.1,3652.8,2.73762]
[1732944447395,0.7652,3653.5,3653.0,2.7374]
[1732944447585,0.25629188,3653.4,3653.0,2.7374]
[1732944447809,0.25629188,3653.3,3652.9,2.73753]
[1732944448004,0.25629188,3653.2,3652.9,2.73753]
[1732944448210,3.70868613,3653.5,3652.9,2.73753]
[1732944448740,0.55,3653.4,3653.1,2.73734]
[1732944449089,0.55,3653.4,3652.9,2.73754]
[1732944449293,0.55,3653.4,3653.1,2.73733]
[1732944449735,0.55,3653.4,3653.2,2.73727]
[1732944449997,0.55,3653.4,3653.2,2.73725]
[1732944451795,0.55,3653.4,3653.1,3.5347]
[1732944452492,0.55,3653.4,3652.9,0.353484]
[1732944452697,0.55,3653.4,3653.1,2.73738]
[1732944453507,0.55,3653.4,3653.2,2.73729]
[1732944456351,0.55,3653.4,3652.9,3.091024]
[1732944456352,0.58421638,3653.4,3653.0,2.73742]
[1732944457438,0.58421638,3653.4,3652.9,3.091024]
[1732944457439,0.58421638,3653.4,3652.9,0.353484]
[1732944457639,0.58421638,3653.4,3652.9,2.73748]
[1732944458157,0.58421638,3653.4,3653.0,2.73746]
[1732944458537,0.55,3653.4,3653.0,2.73746]
[1732944459151,0.58421641,3653.4,3653.0,2.73746]
[1732944459350,0.58421641,3653.4,3652.8,3.53491]
[1732944459351,0.55,3653.2,3652.8,2.73761]
[1732944459503,0.58421845,3653.2,3652.8,2.73761]
[1732944459708,1.5343027,3653.2,3652.6,2.73776]
[1732944459936,4.2716427,3653.2,3652.6,2.73776]
[1732944460140,0.55,3652.7,3652.2,3.5353]
[1732944460358,0.55,3652.7,3652.3,2.73799]
[1732944460506,0.55,3652.7,3652.4,3.011649]
[1732944460857,0.55,3652.7,3652.4,0.273799]
[1732944461005,0.55,3652.7,3652.3,2.73797]
[1732944461406,0.55,3652.7,3652.4,2.7379]
[1732944461708,0.55,3652.7,3652.1,2.73813]
[1732944462039,0.55,3652.7,3652.2,2.73802]
[1732944462243,0.55,3652.7,3652.2,2.73807]
[1732944462772,3.2877,3652.7,3652.0,3.53546]
[1732944462910,3.2877,3652.7,3652.1,2.73813]
[1732944464222,0.55,3652.7,3652.3,2.73795]
[1732944464652,0.55,3652.7,3652.3,2.73796]
[1732944467034,0.55,3652.7,3652.4,2.73791]
[1732944467248,0.55,3652.8,3652.5,2.73782]
[1732944467764,0.55,3652.8,3652.6,2.73776]
[1732944468258,0.55,3653.0,3652.6,1.323867]
[1732944468461,0.55,3653.0,3652.6,0.7763]
[1732944468622,0.55,3653.0,3652.7,2.73766]
[1732944469636,0.55,3653.0,3652.6,0.7763]
[1732944469637,0.55,3653.0,3652.8,2.73761]
[1732944470305,0.55,3653.1,3652.9,2.73752]
[1732944471988,0.55,3653.1,3652.9,2.73748]
[1732944474479,0.7877,3653.0,3652.7,2.73768]
[1732944474779,0.55,3652.9,3652.7,2.73768]
[1732944475783,0.55,3652.9,3652.8,2.73762]
[1732944477245,0.55,3652.9,3652.6,2.73777]
[1732944478842,0.55,3652.9,3652.4,0.7763]
[1732944479089,0.55,3652.9,3652.5,2.73783]
[1732944480474,0.58421997,3652.9,3652.5,2.73783]
[1732944480768,0.58421997,3652.9,3652.4,2.73787]
[1732944481286,0.55,3652.7,3652.4,2.73787]
[1732944481583,0.55,3652.7,3652.3,2.73798]
[1732944481845,2.73755,3652.9,3652.3,0.625243]
[1732944481846,0.55,3652.9,3652.3,0.625243]
[1732944482157,0.55,3652.9,3652.4,2.73791]
[1732944482291,3.32179083,3652.9,3652.2,3.51436]
[1732944482634,0.55,3652.7,3652.2,2.73806]
[1732944482991,0.55,3652.8,3652.2,2.73806]
[1732944483409,0.55,3652.8,3652.2,3.363318]
[1732944485245,0.55,3652.6,3652.2,3.363318]
[1732944485738,0.58422318,3652.7,3652.2,3.363318]
[1732944485941,0.55,3652.8,3652.2,3.363318]
[1732944486147,0.55,3652.6,3652.2,3.363318]
[1732944486735,0.55,3652.8,3652.2,3.363318]
[1732944486939,0.55,3652.6,3652.2,3.363318]
[1732944487109,0.55,3652.8,3652.2,3.363318]
[1732944487447,0.55,3652.6,3652.2,2.73806]
[1732944487655,0.55,3652.8,3652.2,2.73806]
[1732944487855,0.55,3652.6,3652.2,2.73806]
[1732944488354,0.55,3652.7,3652.2,2.73806]